Cogmind - Beta 16 @@@ ROGUE MODE // 2026.01.22 @ 19:49:18 Player: delto Result: Destroyed by H-61 Shepherd with Heavy Assault Cannon Performance ------------- Evolutions (2) 1000 Regions Visited (4) 800 Robots Destroyed (15) 75 Value Destroyed (461) 461 Prototype IDs (3) 60 Alien Tech Used (0) 0 Bonus (60) 60 TOTAL SCORE: 2456 Bonus ------- Follower Combat Kills 60 Cogmind --------- Core Integrity 0/550 Matter 233/300 Energy 100/100 System Corruption 0% Temperature Cool (0) Movement Core (50) Location -8/Materials Parts ------- > --- POWER (2) -------- (None) > --- PROPULSION (4) --- (None) > --- UTILITY (3) ------ Improved Utility Shielding > --- WEAPON (2) ------- (None) > --- INVENTORY (5) ---- Heavy Ion Engine Peak State ------------ > --- POWER ------------ Heavy Ion Engine Light Deuterium Engine > --- PROPULSION ------- Improved Aluminum Leg VSS Leg VSS Leg VSS Leg > --- UTILITY ---------- Compact Matter Pod Improved Utility Shielding > --- WEAPON ----------- Improved EM Shotgun > --- INVENTORY -------- Heavy Ion Engine Improved Aluminum Leg Improved Aluminum Leg Improved Light Cannon Rocket Launcher [Rating: 27] Favorites ----------- Power Light Ion Engine Engine Light Ion Engine Power Core Light Nuclear Core Propulsion Improved Hover Unit Leg VSS Leg Hover Unit Improved Hover Unit Flight Unit Improved Flight Unit Utility Compact Matter Pod Device Seismic Detector Storage Compact Matter Pod Protection Improved Utility Shielding Weapon Heavy EM Pulse Gun Energy Gun Heavy EM Pulse Gun Ballistic Cannon Improved Light Cannon Launcher Rocket Launcher Special Weapon Mining Laser Build | -11 -10 -10 -9 -8 ------- Run | Yrd Mat Min Mat Mat Slots Evolved 4 | . . . 2 2 Power 1 | . . . 1 . Propulsion 2 | . . . 1 1 Utility 1 | . . . . 1 Weapon . | . . . . . Parts Attached 37 | 7 6 4 6 14 Power 6 | 1 . . 1 4 Engine 5 | 1 . . 1 3 Core 1 | . . . . 1 Reactor . | . . . . . Propulsion 16 | 2 2 1 4 7 Treads . | . . . . . Leg 9 | 2 . . . 7 Wheel . | . . . . . Hover 4 | . 2 1 1 . Flight 3 | . . . 3 . Utility 6 | 2 2 1 . 1 Device 2 | 1 1 . . . Storage 3 | 1 1 1 . . Processor . | . . . . . Hackware . | . . . . . Protection 1 | . . . . 1 Artifact . | . . . . . Weapon 9 | 2 2 2 1 2 Energy Gun 6 | 2 2 1 1 . Energy Cannon . | . . . . . Ballistic Gun . | . . . . . Ballistic Cannon 1 | . . . . 1 Launcher 1 | . . . . 1 Special Weapon 1 | . . 1 . . Impact Weapon . | . . . . . Slashing Weapon . | . . . . . Piercing Weapon . | . . . . . Special Melee Weapon . | . . . . . Unidentified Prototypes 1 | . . . . 1 Parts Lost 24 | . . 4 2 18 Power 5 | . . . . 5 Propulsion 9 | . . 1 1 7 Utility 3 | . . 1 . 2 Weapon 7 | . . 2 1 4 Highest Loss Streak 9 | . . 4 2 9 To Critical Strikes . | . . . . . Average Backups 3 | 1 7 4 3 2 Power . | . 3 1 . . Propulsion 1 | . . 1 2 1 Utility . | . 1 . . . Weapon 1 | . 2 1 . 1 Tool/Special . | . . . . . Unused Backups 6 | . 5 1 . . Power 4 | . 3 1 . . Propulsion . | . . . . . Utility . | . . . . . Weapon 2 | . 2 . . . Tool/Special . | . . . . . Average Slot Usage (%) 85 | . 94 98 99 70 Engine 14 | . 14 14 22 10 Leg 14 | . 22 . . 25 Hover 13 | . 4 28 30 . Flight 2 | . . . 1 4 Device 10 | . 14 26 11 1 Storage 8 | . 11 1 11 8 Protection 1 | . . . . 4 Energy Gun 15 | . 26 27 14 7 Ballistic Cannon 1 | . . . . 3 Special Weapon 2 | . . 1 7 . Peak Build Rating 27 | 7 13 13 18 27 Average Rating 15 | 5 7 12 16 20 On Entrance 9 | . 7 13 12 17 Avg Prop Armor Cover (%) 22 | . . . . 22 Naked Turns . | . . . . . Heaviest Build 24 | 12 17 11 14 24 Greatest Support 50 | 20 20 14 21 50 Greatest Overweight (x) . | . . . . . Average Overweight (x) . | . . . . . Largest Inventory Capacity 10 | 8 10 5 5 5 Average Capacity 5 | 7 8 5 5 5 Most Carried 10 | 5 10 5 5 5 Average Carried 3 | 1 7 4 3 2 Final Capacity 8 | 8 5 5 5 5 Final Carried 5 | 5 5 2 3 1 Class Distribution -------------------- 91% | Mutant 8% | Sprinter Dominant Class ---------------- Mutant | -10/Materials Mutant | -10/Mines Mutant | -9/Materials Mutant | -8/Materials Resources | -11 -10 -10 -9 -8 ----------- Run | Yrd Mat Min Mat Mat Matter Collected 447 | 196 . 154 . 97 Remotely . | . . . . . Salvage Created 436 | 22 . 137 . 277 Parts 24 | 6 . 3 . 15 Haulers Intercepted 1 | . . . . 1 Recyclers Shooed . | . . . . . Parts Field Recycled . | . . . . . Retrieved Matter . | . . . . . Parts Self-Destructed . | . . . . . Prevented . | . . . . . Parts Restored . | . . . . . Kills | -11 -10 -10 -9 -8 ------- Run | Yrd Mat Min Mat Mat Combat Hostiles Destroyed 9 | . . 1 . 8 Guns 1 | . . 1 . . Cannons 1 | . . . . 1 AOE 7 | . . . . 7 Classes Destroyed 7 | 1 . 2 . 4 Builder 1 | . . . . 1 Tunneler 3 | 2 . . . 1 Hauler 1 | . . . . 1 Recycler 1 | . . 1 . . Grunt 6 | . . 1 . 5 Sentry 1 | . . . . 1 Hunter 2 | . . . . 2 Best Kill Streak 5 | 1 . 1 . 5 Combat Bots Only 5 | . . 1 . 5 Max Kills in Single Turn 3 | 1 . 1 . 3 Gunslinging . | . . . . . Exploded 2 | . . . . 2 Melee . | . . . . . Uniques/NPCs Destroyed . | . . . . . Combat | -11 -10 -10 -9 -8 -------- Run | Yrd Mat Min Mat Mat Hostile Shots Fired 249 | . . 12 39 198 Missed 105 | . . 4 17 84 Hits 144 | . . 8 22 114 Projectile 144 | . . 8 22 114 AOE 8 | . . 8 . . Critical Strikes 5 | . . . . 5 Damage Taken 2383 | . . 276 191 1916 Core 711 | . . 33 72 606 Absorbed by Shields . | . . . . . Redirected to Shielding 9 | . . . . 9 Core Remaining (%) 89 | 100 . 86 82 . Volleys Fired 36 | 4 . 7 6 19 Largest 2 | 2 . 2 1 2 Hottest 100 | 90 . 90 100 66 Shots Fired 58 | 8 . 14 6 30 Gun 28 | 8 . 14 1 5 Cannon 14 | . . . . 14 Launcher 11 | . . . . 11 Special 5 | . . . 5 . Kinetic 14 | . . . . 14 Thermal 13 | 8 . . 5 . Explosive 11 | . . . . 11 Electromagnetic 20 | . . 14 1 5 Robot Hit Streak 9 | 7 . 9 . 7 Robot Miss Streak 4 | . . 2 4 1 Penetration Max . | . . . . . Secondary Targets . | . . . . . Shots Hit Robots 41 | 7 . 10 . 24 Core Hits 35 | 2 . 4 . 29 Critical Kills . | . . . . . Critical Parts Destroyed . | . . . . . Critical Strikes 3 | 2 . . . 1 Burn 2 | 2 . . . . Blast 1 | . . . . 1 Melee Attacks . | . . . . . Impact . | . . . . . Slashing . | . . . . . Piercing . | . . . . . Sneak Attacks . | . . . . . Combat Hostiles . | . . . . . Follow-up Attacks . | . . . . . Damage Inflicted 1532 | 86 . 211 . 1235 Guns 331 | 86 . 155 . 90 Cannons 204 | . . . . 204 Explosions 991 | . . 56 . 935 Melee . | . . . . . Ramming 6 | . . . . 6 Kinetic 204 | . . . . 204 Thermal 142 | 86 . 56 . . Explosive 935 | . . . . 935 Electromagnetic 245 | . . 155 . 90 Impact . | . . . . . Slashing . | . . . . . Piercing . | . . . . . Highest Corruption . | . . . . . Average Corruption . | . . . . . Corruption Purged . | . . . . . Corruption Blocked . | . . . . . Overload Shots . | . . . . . Overflow Damage 5 | . . . . 5 Projectiles . | . . . . . Explosions 5 | . . . . 5 Melee . | . . . . . Knockbacks 4 | . . . . 4 Impact . | . . . . . Kinetic 4 | . . . . 4 Secondary . | . . . . . Self-Inflicted Damage 61 | . . . . 61 Shots 2 | . . . . 2 Rammed 1 | . . . . 1 Targets Rammed 1 | . . . . 1 Kicked . | . . . . . Crushed . | . . . . . Highest Temperature 155 | 90 . 155 117 123 Average Temperature 48 | 41 . 55 47 47 Received Heat Transfer 582 | . . 9 24 549 Siege Activations . | . . . . . Martial Activations . | . . . . . Shielding Activations . | . . . . . Robots Disrupted . | . . . . . Combat Hostiles . | . . . . . Robots Corrupted . | . . . . . Combat Hostiles . | . . . . . Parts Fried 2 | . . 2 . . Impact Corruptions . | . . . . . Robots Melted . | . . . . . Combat Hostiles . | . . . . . Parts Melted . | . . . . . Heat Transferred 471 | 371 . 100 . . Parts Sabotaged . | . . . . . Parts Stolen . | . . . . . Parts Stripped . | . . . . . Power Chain Reactions 1 | . . 1 . . Alert | -11 -10 -10 -9 -8 ------- Run | Yrd Mat Min Mat Mat Maximum Alert Level 1 | . . . . 1 Low Security (%) 97 | 100 100 100 100 94 Level 1 2 | . . . . 5 Level 2 . | . . . . . Level 3 . | . . . . . Level 4 . | . . . . . Level 5 . | . . . . . High Security . | . . . . . Max Security . | . . . . . Peak Influence 207 | 5 3 63 110 207 Initial 46 | . 3 . 1 46 Average 35 | 1 . 17 23 68 Influence Increases 669 | 10 . 76 215 368 Destroy 0b10 Robot/C 220 | . . 40 20 160 Destroy 0b10 Robot/NC 30 | 10 . 5 . 15 Destroy Leader 52 | . . 10 . 42 Allied During Kill 4 | . . 3 1 . Successful Hack 31 | . . . 25 6 Destroy Structure 77 | . . 3 4 70 Lose Combat Pursuer 255 | . . 15 165 75 Influence Decreases 557 | 5 5 70 111 366 Entered New Map 71 | . 2 . 5 64 Time Decay 231 | 5 3 30 66 127 Lost Part 225 | . . 40 20 165 Lost Ally 30 | . . . 20 10 Squads Dispatched 6 | . . . 3 3 Investigation 1 | . . . 1 . Extermination . | . . . . . Reinforcement 5 | . . . 2 3 Assault . | . . . . . Garrison . | . . . . . Intercept . | . . . . . Searches Triggered . | . . . . . Construction Impeded . | . . . . . Haulers Reinforced . | . . . . . Active Scanning Responses . | . . . . . Cargo Convoy Interrupts . | . . . . . Stealth | -11 -10 -10 -9 -8 --------- Run | Yrd Mat Min Mat Mat Distress Signals 5 | . . 1 3 1 Communications Jammed . | . . . . . Distress Signals . | . . . . . Times Spotted 49 | . 2 4 18 25 Peak Tracking Total 15 | . 2 2 15 10 Tactical Retreats 7 | . . 1 3 3 Traps | -11 -10 -10 -9 -8 ------- Run | Yrd Mat Min Mat Mat Traps Triggered . | . . . . . Indirectly . | . . . . . Trap Hack Attempts . | . . . . . Triggered . | . . . . . Disarmed . | . . . . . Reprogrammed . | . . . . . Reused . | . . . . . Traps Extracted . | . . . . . Installed . | . . . . . Triggered . | . . . . . Machines | -11 -10 -10 -9 -8 ---------- Run | Yrd Mat Min Mat Mat Machines Disabled . | . . . . . Max in Single Turn . | . . . . . Machines Repaired . | . . . . . Machines Dismantled . | . . . . . Machines Sabotaged . | . . . . . Overloaded Fab Kills . | . . . . . Hacking | -11 -10 -10 -9 -8 --------- Run | Yrd Mat Min Mat Mat Machines Accessed 8 | . . . 5 3 Terminals 7 | . . . 4 3 Fabricators . | . . . . . Repair Stations . | . . . . . Recycling Units . | . . . . . Scanalyzers 1 | . . . 1 . Garrison Access . | . . . . . Total Hacks 18 | . . . 13 5 Successful 11 | . . . 10 1 Failed 7 | . . . 3 4 Catastrophic . | . . . . . Database Lockouts . | . . . . . Manual 12 | . . . 7 5 Terminals 14 | . . . 9 5 Fabricators . | . . . . . Repair Stations . | . . . . . Recycling Units . | . . . . . Scanalyzers 4 | . . . 4 . Garrison Access . | . . . . . Terminal Hacks 2 | . . . 2 . Alert Level 1 | . . . 1 . Zone Layout 1 | . . . 1 . Fabricator Hacks . | . . . . . Repair Station Hacks . | . . . . . Recycling Unit Hacks . | . . . . . Scanalyzer 3 | . . . 3 . Insert Component 2 | . . . 2 . Analyze 1 | . . . 1 . Garrison Access Hacks . | . . . . . Unauthorized Hacks 6 | . . . 5 1 Terminals 6 | . . . 5 1 Track 1 | . . . 1 . Assimilate 1 | . . . . 1 Botnet 4 | . . . 4 . Fabricators . | . . . . . Repair Stations . | . . . . . Recycling Units . | . . . . . Scanalyzers . | . . . . . Garrison Access . | . . . . . Data Cores Recovered . | . . . . . Used . | . . . . . Hacking Detections 5 | . . . 2 3 Full Trace Events 1 | . . . 1 . Feedback Events . | . . . . . Feedback Blocked . | . . . . . Robot Schematics Acquired . | . . . . . Robots Built . | . . . . . Authchips . | . . . . . Time . | . . . . . Total Robot Build Rating . | . . . . . Part Schematics Acquired 1 | . . . 1 . Parts Built . | . . . . . Authchips . | . . . . . Time . | . . . . . Total Part Build Rating . | . . . . . Part Studies Acquired . | . . . . . Parts Repaired . | . . . . . Time . | . . . . . Parts Recycled . | . . . . . Recycled Matter . | . . . . . Retrieved Matter . | . . . . . Retrieved Components . | . . . . . Parts Scanalyzed 1 | . . . 1 . Part Schematics Acquired 1 | . . . 1 . Parts Damaged . | . . . . . Bothacking | -11 -10 -10 -9 -8 ------------ Run | Yrd Mat Min Mat Mat Used RIF Installer . | . . . . . Robots Hacked . | . . . . . Non-combat . | . . . . . Combat . | . . . . . Robot Hacks Applied . | . . . . . Relay Couplers Released . | . . . . . Fabnet Peak Effective % . | . . . . . Robots Rewired . | . . . . . Allies Hacked . | . . . . . Hacks Repelled . | . . . . . Allies | -11 -10 -10 -9 -8 -------- Run | Yrd Mat Min Mat Mat Total Allies 2 | . . 1 . 1 Largest Group 1 | . . 1 1 1 Highest-Rated Group 31 | . . 31 31 10 Highest-Rated Ally 31 | . . 31 31 10 Total Orders . | . . . . . Ally Attacks 23 | . . 8 15 . Total Damage 252 | . . 105 147 . Kills 2 | . . 1 1 . Allies Corrupted . | . . . . . Allies Melted . | . . . . . Intel | -11 -10 -10 -9 -8 ------- Run | Yrd Mat Min Mat Mat Active Infowar (turns) 480 | 13 98 123 181 65 Terrain 110 | . 6 104 . . Seismic 480 | 13 98 123 181 65 Robot Analysis Total . | . . . . . Derelict Logs Recovered . | . . . . . Drone Launches . | . . . . . Drone Recoveries . | . . . . . Exploration | -11 -10 -10 -9 -8 ------------- Run | Yrd Mat Min Mat Mat Turns Passed 831 | 99 98 123 181 330 Spaces Moved 915 | 63 74 145 283 350 Core 14 | 5 . . . 9 Treads . | . . . . . Legs 328 | 58 58 . . 212 Wheels . | . . . . . Hover 430 | . 16 145 269 . Flight 143 | . . . 14 129 Fastest Speed 32 | 50 56 56 32 32 Average Speed 68 | 114 106 56 51 70 Slowest Speed 120 | 120 120 56 52 105 Overloaded Moves . | . . . . . Propulsion Burnouts . | . . . . . Robots Hopped 2 | . . . . 2 Potential Cave-ins . | . . . . . Cave-ins Triggered . | . . . . . Exploration Rate (%) 23 | 4 12 28 38 37 Regions Visited 4 Branch Regions 1 Pre-discovered Areas . | . . . . . Known Exits Taken . | . . . . . Unknown Exits Taken 4 | 1 1 1 1 . Scrap Searched . | . . . . . Spaces Dug 5 | . . . 5 . Terrain Destroyed 106 | . . 7 5 94 Melee . | . . . . . Projectile 7 | . . . 5 2 AOE 99 | . . 7 . 92 Terrain Rammed . | . . . . . Walls Destroyed . | . . . . . Machines Disabled . | . . . . . Actions | -11 -10 -10 -9 -8 --------- Run | Yrd Mat Min Mat Mat Total 1048 | 78 94 172 303 401 Wait 19 | . . 15 . 4 Move 907 | 62 73 144 282 346 Hop 2 | . . . . 2 Pick Up 22 | 5 7 1 4 5 Fast Attach 21 | 7 4 1 . 9 Attach 16 | . 1 3 6 6 Detach 7 | . . . 3 4 Swap 3 | . 1 . 2 . Drop 14 | . 8 1 . 5 Fire 36 | 4 . 7 6 19 Melee . | . . . . . Ram 1 | . . . . 1 Kick . | . . . . . Crush . | . . . . . Escape Stasis . | . . . . . Rewire . | . . . . . Trap . | . . . . . Miscellaneous . | . . . . . Route ------- -11/Scrapyard -10/Materials -10/Mines -9/Materials -8/Materials (discovered 1 exit: [*Fac]) History --------- Turn | Location | Event 8 | -11/Scrapyard | Discovered new exit (range 15) 100 | -11/Scrapyard | Entered Materials 137 | -10/Materials | Discovered new exit (range 16) 198 | -10/Materials | Entered Mines 201 | -10/Mines | Received a Mining Laser from a helpful Derelict 298 | -10/Mines | Assembled infested the area 300 | -10/Mines | Discovered new exit (range 9) 303 | -10/Mines | Assisted by a Guerilla fighting off Assembled 321 | -10/Mines | Entered Materials 321 | -9/Materials | Accompanied by 1 ally 321 | -9/Materials | Evolved 2 slots: Power x1, Propulsion x1 341 | -9/Materials | Lost 4 parts (1n1u2w) 352 | -9/Materials | Build established: Mutant 493 | -9/Materials | Discovered new exit (range 15) 502 | -9/Materials | Entered another Materials area 502 | -8/Materials | Evolved 2 slots: Propulsion x1, Utility x1 560 | -8/Materials | Lost 3 parts (1p1n1w) 618 | -8/Materials | Lost 3 parts (1p1u1w) 820 | -8/Materials | Discovered new exit (range 14) 821 | -8/Materials | Lost 9 parts (2p5n2w) 826 | -8/Materials | Core integrity fell below 50% 830 | -8/Materials | Core integrity fell below 20% 832 | -8/Materials | Destroyed by H-61 Shepherd with Heavy Assault Cannon Last Messages --------------- 00787_ Imp. Aluminum Leg destroyed. 00790_ Aluminum Leg destroyed. 00811_ O-16 Technician: "IFF HANDSHAKE FAILED. SECURING TERMINAL." 00813_ ALERT: Suspicious intruders detected, dispatching Specialist reinforcements to area. 00815_ ALERT: Hostiles spotted, dispatching reinforcements to Terminal M008. 00820_ EXIT=FOUND 00821_ Hvy. Ion Engine destroyed. 00821_ Penetrated by Slug. 00821_ Com. Matter Pod destroyed. 00823_ Knocked back. 00823_ VSS Leg destroyed. 00823_ Imp. Light Cannon destroyed. 00826_ VSS Leg destroyed. 00829_ Knocked back. 00831_ Slammed into H-61 Shepherd. 00832_ H-61 Shepherd calls for reinforcements. 00832_ ALERT: Hostile activity reported, dispatching reinforcements to area. Map ----- +----------------------------------------------------+ | ???????????????????# ??????????????# + #??? | | ???????????????????#!! ?????######+?# #### #??? | | ???????????????????#%! ?????# """??# #????? #??? | | ????????????????????!! ?"""#! "T"??# #???????#??? | | ????????????????????? [ """# ???# #??######??? | | ?????????????????????? """#! [???# #?? #??? | | ??????????????????????? ? ????# #? "" #??? | | ??????????????????????###+"## ????# #? = "" #??? | | ??????????????????????# ##+###### # T" #??? | | ??????????????????????# # "" #??? | | ??????????????????????+ T + "" #??? | | ??????????????????????# # #??? | | ??????????????????????# % ##+######## """ #??? | | ??????????????????????## ## ???????""" #??? | | ???????????????????????# % ## ?????""" #??? | | ???????????????????????#% ##! "" #????? /#??? | | ???????????????????????# ## S"" #?????## ??#??? | | ???????????????????????# l## "" #?????????????? | | ???????????????????????# ## #?????????????? | | ???????????????????????# #########?????????????? | | ???????????????????????# x#?????????????????????? | | ???????????????????????#g #?????????????????????? | | ???????????????????????# #?????????????????????? | | ???????????????????????#x %#?????????????????????? | | ???????????????????????# #?????????????????????? | | ???????????????????????#g@ #?????????????????????? | | ???????????????????????# H%#?????????????????????? | | ???????????????????????# #?????????????????????? | | ???????????????????????#####?????????????????????? | | ?????????????????????????????????????????????????? | | ?????????????????????????????????????????????????? | | ?????????????????????????????????????????????????? | | ?????????????????????????????????????????????????? | | ?????????????????????????????????????????????????? | | ?????????????????????????????????????????????????? | | ?????????????????????????????????????????????????? | | | | | | | | | | | | | | | | | | | | | | | | | | | | | +----------------------------------------------------+ Best States ------------- Heat Dissipation 31 Energy Generation 23 Energy Capacity 460 Matter Stores 440 Matter Capacity 450 Sight Range 16 Terrain Scan Range 16 Terrain Scan Density 10 Utility Shielding 66 Evasion (%) 63 Item Schematics ----------------- Imp. EM Shotgun | -9/Materials | Scanalyzed Robot Schematics ------------------ None Fabricated ------------ Nothing Repaired ---------- Nothing Studied --------- None Alien Tech Used ----------------- None Achievements -------------- None Challenges ------------ None Game ------ Seed CargoGuidanceClaws Manual? 0 Play Time 00:18:56 Cumulative 97.2 hours Start 2026.01.22 @ 16:36:16 End 2026.01.22 @ 19:49:18 Sessions 5 Manual Loads 0 Difficulty Rogue Special Mode None Game No. 122 Rogue 122 Adventurer 0 Explorer 0 Win Type - Total 1 Types 1/0/0/0/0/0/0/0/0/0 Lore% 24 Gallery% 43 Achievement% 29 Wizard Run 0 Options --------- Layout 0 ASCII 0 Keyboard 0 Movement Mouse Keybinds 0 Fullscreen 1 Font 24/Smallcaps Map View 76x50 Zoom Use 0% Tactical HUD 1 Map Filters NONE Filters NONE Steam 1 RUN: f95c786a-a70e-4f68-b05c-c2ff9cc3da5c